[Event "Titled Tuesday Blitz July 11 Early 2023"]
[White "Perez Candelario, Manuel"]
[Black "Mihailidis, Anastasios"]
[WhiteFideId "2210622"]
[BlackFideId "4205588"]
[WhiteElo "2659"]
[BlackElo "2505"]
[Result "1-0"]
[Round "8"]
[TimeControl "180+2"]
[Date "2023.07.11"]
[WhiteClock "0:00:36"]
[BlackClock "0:00:08"]
[Board "49"]

1. e4 {[%clk 0:03:00]}  c5 {[%clk 0:02:59]} 2. Nf3 {[%clk 0:03:00]}  d6 {[%clk 0:02:59]} 3. d4 {[%clk 0:03:00]}  cxd4 {[%clk 0:03:00]} 4. Nxd4 {[%clk 0:03:01]}  Nf6 {[%clk 0:03:00]} 5. Nc3 {[%clk 0:03:01]}  g6 {[%clk 0:03:00]} 6. Be3 {[%clk 0:03:00]}  Bg7 {[%clk 0:03:00]} 7. f3 {[%clk 0:03:01]}  O-O {[%clk 0:02:59]} 8. Qd2 {[%clk 0:03:01]}  Nc6 {[%clk 0:02:59]} 9. O-O-O {[%clk 0:03:02]}  d5 {[%clk 0:02:59]} 10. Kb1 {[%clk 0:03:01]}  e5 {[%clk 0:02:59]} 11. Nxc6 {[%clk 0:03:01]}  bxc6 {[%clk 0:02:58]} 12. exd5 {[%clk 0:03:01]}  cxd5 {[%clk 0:02:58]} 13. Nxd5 {[%clk 0:03:02]}  Nxd5 {[%clk 0:02:57]} 14. Qxd5 {[%clk 0:03:02]}  Qc7 {[%clk 0:02:43]} 15. Qxa8 {[%clk 0:03:00]}  Bf5 {[%clk 0:02:30]} 16. Qd5 {[%clk 0:02:59]}  Bxc2+ {[%clk 0:02:27]} 17. Ka1 {[%clk 0:02:57]}  Bxd1 {[%clk 0:02:28]} 18. Qxd1 {[%clk 0:02:56]}  Rb8 {[%clk 0:02:28]} 19. Be2 {[%clk 0:01:30]}  e4 {[%clk 0:02:04]} 20. Bc1 {[%clk 0:01:28]}  Qb6 {[%clk 0:01:51]} 21. Qb3 {[%clk 0:01:23]}  Qc7 {[%clk 0:01:48]} 22. Qc4 {[%clk 0:01:14]}  Qb6 {[%clk 0:01:44]} 23. Qc2 {[%clk 0:01:10]}  a5 {[%clk 0:01:38]} 24. Rd1 {[%clk 0:01:02]}  a4 {[%clk 0:01:36]} 25. a3 {[%clk 0:01:02]}  h5 {[%clk 0:01:30]} 26. fxe4 {[%clk 0:01:01]}  Qb7 {[%clk 0:01:25]} 27. Bc4 {[%clk 0:00:55]}  Kh7 {[%clk 0:01:09]} 28. Ka2 {[%clk 0:00:49]}  Qa7 {[%clk 0:00:57]} 29. Rf1 {[%clk 0:00:47]}  f6 {[%clk 0:00:55]} 30. Rd1 {[%clk 0:00:46]}  Rc8 {[%clk 0:00:43]} 31. Qe2 {[%clk 0:00:46]}  Qc5 {[%clk 0:00:40]} 32. Bd5 {[%clk 0:00:41]}  Rb8 {[%clk 0:00:22]} 33. Be3 {[%clk 0:00:40]}  Qe7 {[%clk 0:00:19]} 34. Bd4 {[%clk 0:00:40]}  f5 {[%clk 0:00:16]} 35. Bxg7 {[%clk 0:00:40]}  Kxg7 {[%clk 0:00:14]} 36. e5 {[%clk 0:00:38]}  Kh7 {[%clk 0:00:10]} 37. e6 {[%clk 0:00:38]}  Rd8 {[%clk 0:00:09]} 38. Bc4 {[%clk 0:00:37]}  Rc8 {[%clk 0:00:08]} 39. Rd7 {[%clk 0:00:37]}  Rc7 {[%clk 0:00:07]} 40. Rxe7+ {[%clk 0:00:36]}  Rxe7 {[%clk 0:00:08]} 1-0


[Site "https://www.chess.com"]

[Event "Titled Tuesday Blitz July 11 Early 2023"]
[White "Avazkhonov, Alikhon"]
[Black "Ambartsumova, Karina"]
[WhiteFideId "14208504"]
[BlackFideId "4166299"]
[WhiteElo "2464"]
[BlackElo "2586"]
[Result "0-1"]
[Round "8"]
[TimeControl "180+2"]
[Date "2023.07.11"]
[WhiteClock "0:00:00"]
[BlackClock "0:00:07"]
[Board "50"]

1. d4 {[%clk 0:02:58]}  d6 {[%clk 0:03:00]} 2. e4 {[%clk 0:02:57]}  g6 {[%clk 0:02:57]} 3. f3 {[%clk 0:02:51]}  Bg7 {[%clk 0:02:57]} 4. Be3 {[%clk 0:02:51]}  a6 {[%clk 0:02:57]} 5. Nc3 {[%clk 0:02:52]}  b5 {[%clk 0:02:58]} 6. Qd2 {[%clk 0:02:52]}  Bb7 {[%clk 0:02:58]} 7. O-O-O {[%clk 0:02:53]}  Nd7 {[%clk 0:02:57]} 8. Kb1 {[%clk 0:02:53]}  b4 {[%clk 0:02:40]} 9. Nce2 {[%clk 0:02:49]}  a5 {[%clk 0:02:38]} 10. Nc1 {[%clk 0:02:49]}  Ngf6 {[%clk 0:02:27]} 11. Bh6 {[%clk 0:02:45]}  O-O {[%clk 0:02:17]} 12. h4 {[%clk 0:02:44]}  e5 {[%clk 0:02:14]} 13. g4 {[%clk 0:02:32]}  Qe7 {[%clk 0:01:27]} 14. h5 {[%clk 0:02:20]}  exd4 {[%clk 0:01:23]} 15. Nge2 {[%clk 0:02:09]}  c5 {[%clk 0:01:18]} 16. Ng3 {[%clk 0:02:04]}  Ne8 {[%clk 0:00:40]} 17. Bxg7 {[%clk 0:01:19]}  Nxg7 {[%clk 0:00:31]} 18. hxg6 {[%clk 0:01:19]}  fxg6 {[%clk 0:00:31]} 19. Bc4+ {[%clk 0:01:10]}  Ne6 {[%clk 0:00:23]} 20. Qh6 {[%clk 0:00:51]}  Rf7 {[%clk 0:00:23]} 21. Nf5 {[%clk 0:00:52]}  Qf6 {[%clk 0:00:14]} 22. Nxd6 {[%clk 0:00:29]}  Ndf8 {[%clk 0:00:14]} 23. g5 {[%clk 0:00:24]}  Qg7 {[%clk 0:00:13]} 24. Qxg6 {[%clk 0:00:11]}  hxg6 {[%clk 0:00:10]} 25. f4 {[%clk 0:00:05]}  Rd7 {[%clk 0:00:11]} 26. Nxb7 {[%clk 0:00:05]}  Rxb7 {[%clk 0:00:11]} 27. f5 {[%clk 0:00:05]}  Qe5 {[%clk 0:00:12]} 28. fxe6 {[%clk 0:00:05]}  Nxe6 {[%clk 0:00:13]} 29. Bd5 {[%clk 0:00:06]}  Rab8 {[%clk 0:00:12]} 30. Nd3 {[%clk 0:00:06]}  Qd6 {[%clk 0:00:12]} 31. Rdf1 {[%clk 0:00:06]}  Rh7 {[%clk 0:00:11]} 32. Rxh7 {[%clk 0:00:05]}  Kxh7 {[%clk 0:00:12]} 33. Rf7+ {[%clk 0:00:05]}  Kg8 {[%clk 0:00:12]} 34. Rf6 {[%clk 0:00:04]}  Re8 {[%clk 0:00:12]} 35. Nf4 {[%clk 0:00:05]}  Qe5 {[%clk 0:00:12]} 36. Nxe6 {[%clk 0:00:04]}  Qg3 {[%clk 0:00:08]} 37. Rxg6+ {[%clk 0:00:04]}  Kh7 {[%clk 0:00:08]} 38. Rh6+ {[%clk 0:00:05]}  Kg8 {[%clk 0:00:08]} 39. Nf4+ {[%clk 0:00:05]}  Kf8 {[%clk 0:00:08]} 40. Rf6+ {[%clk 0:00:03]}  Ke7 {[%clk 0:00:08]} 41. Rf7+ {[%clk 0:00:02]}  Kd8 {[%clk 0:00:07]} 42. b3 {[%clk 0:00:00]}  Qxg5 {[%clk 0:00:07]} 0-1


[Site "https://www.chess.com"]

[Event "Titled Tuesday Blitz July 11 Early 2023"]
[White "NovoselovRoman"]
[Black "JonSnowNW1"]
[WhiteElo "2583"]
[BlackElo "2454"]
[Result "0-1"]
[Round "8"]
[TimeControl "180+2"]
[Date "2023.07.11"]
[WhiteClock "0:00:16"]
[BlackClock "0:00:08"]
[Board "51"]

1. e4 {[%clk 0:03:00]}  c5 {[%clk 0:02:59]} 2. Nc3 {[%clk 0:02:59]}  d6 {[%clk 0:02:58]} 3. g3 {[%clk 0:02:59]}  g6 {[%clk 0:02:58]} 4. Bg2 {[%clk 0:02:59]}  Bg7 {[%clk 0:02:58]} 5. d3 {[%clk 0:03:00]}  Nc6 {[%clk 0:02:58]} 6. Be3 {[%clk 0:03:00]}  e6 {[%clk 0:02:45]} 7. Nf3 {[%clk 0:03:00]}  Rb8 {[%clk 0:02:43]} 8. a4 {[%clk 0:02:59]}  a6 {[%clk 0:02:36]} 9. d4 {[%clk 0:02:54]}  cxd4 {[%clk 0:02:32]} 10. Nxd4 {[%clk 0:02:55]}  Nge7 {[%clk 0:02:31]} 11. Qd2 {[%clk 0:02:52]}  Ne5 {[%clk 0:02:28]} 12. Qe2 {[%clk 0:02:26]}  Qc7 {[%clk 0:02:13]} 13. Rd1 {[%clk 0:02:12]}  Nc4 {[%clk 0:02:12]} 14. Ncb5 {[%clk 0:02:02]}  axb5 {[%clk 0:02:05]} 15. Nxb5 {[%clk 0:02:02]}  Qa5+ {[%clk 0:02:04]} 16. b4 {[%clk 0:02:02]}  Qxb4+ {[%clk 0:02:02]} 17. c3 {[%clk 0:01:56]}  Bxc3+ {[%clk 0:02:01]} 18. Kf1 {[%clk 0:01:56]}  Bd7 {[%clk 0:01:45]} 19. Nxc3 {[%clk 0:01:51]}  Nxe3+ {[%clk 0:01:21]} 20. Qxe3 {[%clk 0:01:48]}  Rc8 {[%clk 0:01:20]} 21. Nb5 {[%clk 0:01:34]}  Bxb5+ {[%clk 0:01:18]} 22. axb5 {[%clk 0:01:33]}  Qxb5+ {[%clk 0:01:17]} 23. Kg1 {[%clk 0:01:34]}  O-O {[%clk 0:01:10]} 24. h4 {[%clk 0:01:34]}  Rc2 {[%clk 0:00:53]} 25. Rxd6 {[%clk 0:01:19]}  Ra8 {[%clk 0:00:51]} 26. Bf1 {[%clk 0:01:08]}  Qc5 {[%clk 0:00:22]} 27. Qxc5 {[%clk 0:01:00]}  Rxc5 {[%clk 0:00:23]} 28. Rd7 {[%clk 0:01:00]}  Nc6 {[%clk 0:00:23]} 29. Rxb7 {[%clk 0:01:00]}  Ne5 {[%clk 0:00:22]} 30. Rb2 {[%clk 0:00:40]}  Ra1 {[%clk 0:00:20]} 31. h5 {[%clk 0:00:21]}  Rcc1 {[%clk 0:00:19]} 32. h6 {[%clk 0:00:20]}  f6 {[%clk 0:00:13]} 33. Kg2 {[%clk 0:00:20]}  Ng4 {[%clk 0:00:10]} 34. Rh4 {[%clk 0:00:18]}  f5 {[%clk 0:00:07]} 35. Be2 {[%clk 0:00:16]}  Rg1+ {[%clk 0:00:06]} 36. Kf3 {[%clk 0:00:16]}  Ne5+ {[%clk 0:00:05]} 37. Kf4 {[%clk 0:00:17]}  g5+ {[%clk 0:00:04]} 38. Kxe5 {[%clk 0:00:17]}  gxh4 {[%clk 0:00:03]} 39. Kf6 {[%clk 0:00:16]}  Ra8 {[%clk 0:00:02]} 40. e5 {[%clk 0:00:16]}  h3 {[%clk 0:00:02]} 41. Rb7 {[%clk 0:00:14]}  h2 {[%clk 0:00:01]} 42. Rg7+ {[%clk 0:00:13]}  Kh8 {[%clk 0:00:02]} 43. Bf3 {[%clk 0:00:14]}  h1=Q {[%clk 0:00:03]} 44. Bxh1 {[%clk 0:00:14]}  Rxh1 {[%clk 0:00:04]} 45. Kxe6 {[%clk 0:00:15]}  Rxh6+ {[%clk 0:00:04]} 46. Kf7 {[%clk 0:00:15]}  Ra7+ {[%clk 0:00:05]} 47. Kf8 {[%clk 0:00:15]}  Rxg7 {[%clk 0:00:06]} 48. f4 {[%clk 0:00:16]}  Ra6 {[%clk 0:00:07]} 49. e6 {[%clk 0:00:16]}  Ra8# {[%clk 0:00:08]} 0-1


[Site "https://www.chess.com"]

[Event "Titled Tuesday Blitz July 11 Early 2023"]
[White "Narayanan, Srinath"]
[Black "Michalczak, Thomas"]
[WhiteFideId "5018420"]
[BlackFideId "4622634"]
[WhiteElo "2896"]
[BlackElo "2560"]
[Result "1-0"]
[Round "8"]
[TimeControl "180+2"]
[Date "2023.07.11"]
[WhiteClock "0:00:04"]
[BlackClock "0:00:00"]
[Board "54"]

1. d4 {[%clk 0:03:00]}  Nf6 {[%clk 0:02:59]} 2. Nf3 {[%clk 0:03:01]}  d5 {[%clk 0:02:58]} 3. Bf4 {[%clk 0:03:02]}  c5 {[%clk 0:02:58]} 4. e3 {[%clk 0:03:02]}  Nc6 {[%clk 0:02:58]} 5. Nbd2 {[%clk 0:03:03]}  Qb6 {[%clk 0:02:58]} 6. dxc5 {[%clk 0:03:03]}  Qxb2 {[%clk 0:02:58]} 7. Rb1 {[%clk 0:03:02]}  Qc3 {[%clk 0:02:57]} 8. Bb5 {[%clk 0:02:58]}  e6 {[%clk 0:02:57]} 9. O-O {[%clk 0:02:57]}  Be7 {[%clk 0:02:55]} 10. Nb3 {[%clk 0:02:48]}  O-O {[%clk 0:02:45]} 11. Nfd4 {[%clk 0:02:41]}  Bd7 {[%clk 0:01:58]} 12. Bxc6 {[%clk 0:01:51]}  Bxc6 {[%clk 0:01:59]} 13. Be5 {[%clk 0:01:52]}  Qb4 {[%clk 0:01:42]} 14. c3 {[%clk 0:01:36]}  Qa3 {[%clk 0:01:34]} 15. Nxc6 {[%clk 0:01:32]}  bxc6 {[%clk 0:01:33]} 16. Qd4 {[%clk 0:01:33]}  Qxa2 {[%clk 0:01:21]} 17. Qb4 {[%clk 0:01:32]}  Qe2 {[%clk 0:01:18]} 18. Qb7 {[%clk 0:01:26]}  Rfe8 {[%clk 0:01:11]} 19. Qxc6 {[%clk 0:01:21]}  Ne4 {[%clk 0:01:02]} 20. h3 {[%clk 0:00:49]}  Bh4 {[%clk 0:00:37]} 21. Nd4 {[%clk 0:00:33]}  Bxf2+ {[%clk 0:00:35]} 22. Kh1 {[%clk 0:00:33]}  Qxe3 {[%clk 0:00:33]} 23. Qc7 {[%clk 0:00:34]}  Nxc3 {[%clk 0:00:23]} 24. Rb7 {[%clk 0:00:27]}  Rf8 {[%clk 0:00:19]} 25. Nxe6 {[%clk 0:00:28]}  Ne4 {[%clk 0:00:14]} 26. Nxf8 {[%clk 0:00:22]}  Rxf8 {[%clk 0:00:13]} 27. Rb8 {[%clk 0:00:22]}  Qxc5 {[%clk 0:00:09]} 28. Rxf8+ {[%clk 0:00:13]}  Qxf8 {[%clk 0:00:08]} 29. Qd7 {[%clk 0:00:11]}  Ng3+ {[%clk 0:00:06]} 30. Bxg3 {[%clk 0:00:10]}  Bxg3 {[%clk 0:00:06]} 31. Qxd5 {[%clk 0:00:10]}  Qe8 {[%clk 0:00:04]} 32. Qb7 {[%clk 0:00:06]}  Bb8 {[%clk 0:00:04]} 33. Rb1 {[%clk 0:00:04]}  Bd6 {[%clk 0:00:02]} 34. Qxa7 {[%clk 0:00:03]}  g6 {[%clk 0:00:00]} 35. Qd4 {[%clk 0:00:04]} 1-0


[Site "https://www.chess.com"]

[Event "Titled Tuesday Blitz July 11 Early 2023"]
[White "Gunina, Valentina"]
[Black "Korelskiy, Egor"]
[WhiteFideId "4167570"]
[BlackFideId "34329064"]
[WhiteElo "2714"]
[BlackElo "2534"]
[Result "1-0"]
[Round "8"]
[TimeControl "180+2"]
[Date "2023.07.11"]
[WhiteClock "0:01:55"]
[BlackClock "0:01:07"]
[Board "58"]

1. d4 {[%clk 0:03:00]}  d5 {[%clk 0:02:58]} 2. c4 {[%clk 0:03:00]}  e6 {[%clk 0:02:59]} 3. Nf3 {[%clk 0:03:01]}  Nf6 {[%clk 0:02:58]} 4. Nc3 {[%clk 0:02:58]}  c6 {[%clk 0:02:58]} 5. e3 {[%clk 0:02:58]}  Nbd7 {[%clk 0:02:55]} 6. Be2 {[%clk 0:02:51]}  Bd6 {[%clk 0:02:55]} 7. O-O {[%clk 0:02:51]}  O-O {[%clk 0:02:56]} 8. b3 {[%clk 0:02:51]}  b6 {[%clk 0:02:56]} 9. Bb2 {[%clk 0:02:51]}  Bb7 {[%clk 0:02:56]} 10. Rc1 {[%clk 0:02:52]}  Qe7 {[%clk 0:02:56]} 11. Bd3 {[%clk 0:02:52]}  Rfe8 {[%clk 0:02:53]} 12. h3 {[%clk 0:02:50]}  Rac8 {[%clk 0:02:53]} 13. Re1 {[%clk 0:02:49]}  c5 {[%clk 0:02:54]} 14. cxd5 {[%clk 0:02:49]}  exd5 {[%clk 0:02:54]} 15. Qe2 {[%clk 0:02:37]}  Ne4 {[%clk 0:02:37]} 16. Ba6 {[%clk 0:02:37]}  Bxa6 {[%clk 0:02:36]} 17. Qxa6 {[%clk 0:02:36]}  Nxc3 {[%clk 0:02:35]} 18. Bxc3 {[%clk 0:02:35]}  Nf6 {[%clk 0:02:26]} 19. dxc5 {[%clk 0:02:34]}  bxc5 {[%clk 0:02:25]} 20. Red1 {[%clk 0:02:33]}  Ne4 {[%clk 0:02:25]} 21. Rxd5 {[%clk 0:02:32]}  Qe6 {[%clk 0:02:23]} 22. Qc4 {[%clk 0:02:29]}  Red8 {[%clk 0:02:12]} 23. Kf1 {[%clk 0:02:16]}  Nxf2 {[%clk 0:01:45]} 24. Rxd6 {[%clk 0:02:12]}  Qxd6 {[%clk 0:01:31]} 25. Kxf2 {[%clk 0:02:11]}  Re8 {[%clk 0:01:29]} 26. Qg4 {[%clk 0:02:07]}  f6 {[%clk 0:01:28]} 27. h4 {[%clk 0:02:03]}  Kh8 {[%clk 0:01:28]} 28. h5 {[%clk 0:02:03]}  Qe7 {[%clk 0:01:27]} 29. Re1 {[%clk 0:02:02]}  c4 {[%clk 0:01:25]} 30. bxc4 {[%clk 0:02:00]}  Qa3 {[%clk 0:01:24]} 31. Bd4 {[%clk 0:01:57]}  Qxa2+ {[%clk 0:01:24]} 32. Re2 {[%clk 0:01:57]}  Qxc4 {[%clk 0:01:21]} 33. h6 {[%clk 0:01:58]}  Qf7 {[%clk 0:01:21]} 34. hxg7+ {[%clk 0:01:58]}  Qxg7 {[%clk 0:01:21]} 35. Qf4 {[%clk 0:01:58]}  Re6 {[%clk 0:01:17]} 36. Rb2 {[%clk 0:01:55]}  a5 {[%clk 0:01:16]} 37. Nh4 {[%clk 0:01:55]}  a4 {[%clk 0:01:15]} 38. Nf5 {[%clk 0:01:55]}  Qf7 {[%clk 0:01:11]} 39. Nd6 {[%clk 0:01:55]}  Rxd6 {[%clk 0:01:09]} 40. Qxd6 {[%clk 0:01:55]}  a3 {[%clk 0:01:07]} 41. Qxa3 {[%clk 0:01:55]} 1-0


[Site "https://www.chess.com"]

[Event "Titled Tuesday Blitz July 11 Early 2023"]
[White "Goryachkina, Aleksandra"]
[Black "Shturman, Arseniy"]
[WhiteFideId "4147103"]
[BlackFideId "34275797"]
[WhiteElo "2710"]
[BlackElo "2547"]
[Result "1-0"]
[Round "8"]
[TimeControl "180+2"]
[Date "2023.07.11"]
[WhiteClock "0:00:50"]
[BlackClock "0:00:31"]
[Board "59"]

1. e4 {[%clk 0:03:00]}  c5 {[%clk 0:02:58]} 2. Nf3 {[%clk 0:03:00]}  d6 {[%clk 0:02:56]} 3. Bb5+ {[%clk 0:03:00]}  Nd7 {[%clk 0:02:56]} 4. O-O {[%clk 0:03:00]}  Nf6 {[%clk 0:02:55]} 5. Re1 {[%clk 0:03:00]}  g6 {[%clk 0:02:52]} 6. c3 {[%clk 0:02:59]}  Bh6 {[%clk 0:02:52]} 7. d4 {[%clk 0:02:58]}  Bxc1 {[%clk 0:02:52]} 8. Qxc1 {[%clk 0:02:58]}  cxd4 {[%clk 0:02:51]} 9. cxd4 {[%clk 0:02:57]}  O-O {[%clk 0:02:51]} 10. e5 {[%clk 0:02:52]}  dxe5 {[%clk 0:02:42]} 11. dxe5 {[%clk 0:02:52]}  Nh5 {[%clk 0:02:12]} 12. Qh6 {[%clk 0:02:48]}  f6 {[%clk 0:02:07]} 13. Nc3 {[%clk 0:02:18]}  Nxe5 {[%clk 0:01:51]} 14. Nxe5 {[%clk 0:02:03]}  fxe5 {[%clk 0:01:49]} 15. Rxe5 {[%clk 0:02:02]}  Qd4 {[%clk 0:01:43]} 16. Rxe7 {[%clk 0:01:47]}  Qxf2+ {[%clk 0:01:23]} 17. Kh1 {[%clk 0:01:47]}  Rf7 {[%clk 0:01:13]} 18. Re8+ {[%clk 0:01:39]}  Rf8 {[%clk 0:01:11]} 19. Bc4+ {[%clk 0:01:37]}  Be6 {[%clk 0:01:10]} 20. Bxe6+ {[%clk 0:01:34]}  Kh8 {[%clk 0:01:09]} 21. Qxf8+ {[%clk 0:01:33]}  Qxf8 {[%clk 0:01:09]} 22. Rxf8+ {[%clk 0:01:33]}  Rxf8 {[%clk 0:01:10]} 23. Bd5 {[%clk 0:01:33]}  Rf2 {[%clk 0:01:08]} 24. Rb1 {[%clk 0:01:31]}  b6 {[%clk 0:01:07]} 25. Kg1 {[%clk 0:01:30]}  Rd2 {[%clk 0:01:06]} 26. Bf3 {[%clk 0:01:28]}  Nf4 {[%clk 0:01:03]} 27. Kf1 {[%clk 0:01:25]}  a5 {[%clk 0:00:55]} 28. a4 {[%clk 0:01:11]}  Nd3 {[%clk 0:00:50]} 29. Rd1 {[%clk 0:01:02]}  Rxd1+ {[%clk 0:00:47]} 30. Nxd1 {[%clk 0:01:02]}  Nc5 {[%clk 0:00:45]} 31. Nc3 {[%clk 0:00:57]}  Nd3 {[%clk 0:00:42]} 32. b3 {[%clk 0:00:57]}  Nc5 {[%clk 0:00:42]} 33. Bd5 {[%clk 0:00:57]}  Kg7 {[%clk 0:00:43]} 34. Ke2 {[%clk 0:00:57]}  Kf6 {[%clk 0:00:42]} 35. Ke3 {[%clk 0:00:57]}  Ke5 {[%clk 0:00:43]} 36. Bc4 {[%clk 0:00:57]}  g5 {[%clk 0:00:41]} 37. Ne2 {[%clk 0:00:56]}  h5 {[%clk 0:00:36]} 38. Nc1 {[%clk 0:00:52]}  Ne4 {[%clk 0:00:33]} 39. Nd3+ {[%clk 0:00:52]}  Kf5 {[%clk 0:00:31]} 40. Be6+ {[%clk 0:00:50]} 1-0


[Site "https://www.chess.com"]

[Event "Titled Tuesday Blitz July 11 Early 2023"]
[White "Jaracz, Pawel"]
[Black "Sidletskyi, Ivan"]
[WhiteFideId "1102222"]
[BlackFideId "14156024"]
[WhiteElo "2691"]
[BlackElo "2534"]
[Result "1-0"]
[Round "8"]
[TimeControl "180+2"]
[Date "2023.07.11"]
[WhiteClock "0:00:11"]
[BlackClock "0:00:14"]
[Board "60"]

1. Nf3 {[%clk 0:02:56]}  Nf6 {[%clk 0:02:59]} 2. d4 {[%clk 0:02:57]}  d5 {[%clk 0:02:59]} 3. c4 {[%clk 0:02:55]}  e6 {[%clk 0:02:59]} 4. g3 {[%clk 0:02:55]}  Bb4+ {[%clk 0:02:57]} 5. Bd2 {[%clk 0:02:55]}  Bd6 {[%clk 0:02:58]} 6. Qc2 {[%clk 0:02:52]}  O-O {[%clk 0:02:54]} 7. Bg2 {[%clk 0:02:53]}  c6 {[%clk 0:02:49]} 8. O-O {[%clk 0:02:52]}  Nbd7 {[%clk 0:02:46]} 9. Bc3 {[%clk 0:02:51]}  Ne4 {[%clk 0:02:46]} 10. Nbd2 {[%clk 0:02:47]}  f5 {[%clk 0:02:46]} 11. Ne1 {[%clk 0:02:45]}  Nxc3 {[%clk 0:02:35]} 12. bxc3 {[%clk 0:02:45]}  b6 {[%clk 0:02:31]} 13. Nd3 {[%clk 0:02:44]}  Ba6 {[%clk 0:02:28]} 14. Qa4 {[%clk 0:02:35]}  Bxc4 {[%clk 0:02:24]} 15. Qxc6 {[%clk 0:02:11]}  Bxd3 {[%clk 0:02:23]} 16. Qxd6 {[%clk 0:02:09]}  Be4 {[%clk 0:01:57]} 17. Qxe6+ {[%clk 0:02:08]}  Kh8 {[%clk 0:01:56]} 18. f3 {[%clk 0:02:03]}  Re8 {[%clk 0:01:56]} 19. Qd6 {[%clk 0:02:00]}  Bc2 {[%clk 0:01:55]} 20. Rae1 {[%clk 0:01:33]}  Rc8 {[%clk 0:01:54]} 21. Qa3 {[%clk 0:01:19]}  Re3 {[%clk 0:01:50]} 22. Qb2 {[%clk 0:01:02]}  Rexc3 {[%clk 0:01:40]} 23. Rc1 {[%clk 0:01:03]}  Qe7 {[%clk 0:01:33]} 24. e4 {[%clk 0:00:54]}  fxe4 {[%clk 0:01:25]} 25. fxe4 {[%clk 0:00:54]}  Nf6 {[%clk 0:01:22]} 26. e5 {[%clk 0:00:51]}  Ng4 {[%clk 0:01:19]} 27. Bh3 {[%clk 0:00:46]}  Qg5 {[%clk 0:01:16]} 28. Rf4 {[%clk 0:00:36]}  h5 {[%clk 0:01:10]} 29. Nf3 {[%clk 0:00:34]}  Qg6 {[%clk 0:00:57]} 30. Nh4 {[%clk 0:00:31]}  Qd3 {[%clk 0:00:56]} 31. Bxg4 {[%clk 0:00:31]}  Qe3+ {[%clk 0:00:51]} 32. Rf2 {[%clk 0:00:30]}  Be4 {[%clk 0:00:34]} 33. Rxc3 {[%clk 0:00:24]}  Rxc3 {[%clk 0:00:34]} 34. Be2 {[%clk 0:00:12]}  Rc2 {[%clk 0:00:24]} 35. Qb5 {[%clk 0:00:10]}  Kh7 {[%clk 0:00:17]} 36. Ng2 {[%clk 0:00:08]}  Rc1+ {[%clk 0:00:14]} 37. Bf1 {[%clk 0:00:08]}  Qxd4 {[%clk 0:00:14]} 38. Qe2 {[%clk 0:00:06]}  g6 {[%clk 0:00:09]} 39. e6 {[%clk 0:00:06]}  Bd3 {[%clk 0:00:08]} 40. Qe3 {[%clk 0:00:05]}  Bxf1 {[%clk 0:00:04]} 41. Rxf1 {[%clk 0:00:04]}  Rxf1+ {[%clk 0:00:03]} 42. Kxf1 {[%clk 0:00:04]}  Qa1+ {[%clk 0:00:03]} 43. Qe1 {[%clk 0:00:03]}  Qf6+ {[%clk 0:00:04]} 44. Kg1 {[%clk 0:00:03]}  Qe7 {[%clk 0:00:05]} 45. Nf4 {[%clk 0:00:03]}  d4 {[%clk 0:00:05]} 46. Qe4 {[%clk 0:00:02]}  d3 {[%clk 0:00:06]} 47. Qxg6+ {[%clk 0:00:02]}  Kh8 {[%clk 0:00:06]} 48. Qh6+ {[%clk 0:00:03]}  Kg8 {[%clk 0:00:06]} 49. Qg6+ {[%clk 0:00:03]}  Kf8 {[%clk 0:00:06]} 50. Qf5+ {[%clk 0:00:03]}  Ke8 {[%clk 0:00:07]} 51. Qxh5+ {[%clk 0:00:04]}  Kd8 {[%clk 0:00:06]} 52. Qd5+ {[%clk 0:00:05]}  Kc8 {[%clk 0:00:07]} 53. Qd7+ {[%clk 0:00:05]}  Qxd7 {[%clk 0:00:07]} 54. exd7+ {[%clk 0:00:06]}  Kxd7 {[%clk 0:00:08]} 55. Nxd3 {[%clk 0:00:06]}  Kd6 {[%clk 0:00:09]} 56. h4 {[%clk 0:00:07]}  Ke6 {[%clk 0:00:09]} 57. Kg2 {[%clk 0:00:06]}  Kf5 {[%clk 0:00:10]} 58. Kf3 {[%clk 0:00:06]}  b5 {[%clk 0:00:10]} 59. g4+ {[%clk 0:00:07]}  Kf6 {[%clk 0:00:09]} 60. Nf4 {[%clk 0:00:07]}  a5 {[%clk 0:00:10]} 61. g5+ {[%clk 0:00:08]}  Kf5 {[%clk 0:00:11]} 62. g6 {[%clk 0:00:08]}  Kf6 {[%clk 0:00:11]} 63. h5 {[%clk 0:00:08]}  b4 {[%clk 0:00:12]} 64. Ke4 {[%clk 0:00:09]}  a4 {[%clk 0:00:12]} 65. Nd5+ {[%clk 0:00:08]}  Kg5 {[%clk 0:00:11]} 66. Nxb4 {[%clk 0:00:09]}  Kxh5 {[%clk 0:00:11]} 67. g7 {[%clk 0:00:09]}  a3 {[%clk 0:00:12]} 68. g8=Q {[%clk 0:00:10]}  Kh6 {[%clk 0:00:13]} 69. Qg4 {[%clk 0:00:10]}  Kh7 {[%clk 0:00:12]} 70. Kf5 {[%clk 0:00:10]}  Kh8 {[%clk 0:00:13]} 71. Kf6 {[%clk 0:00:11]}  Kh7 {[%clk 0:00:14]} 72. Qg7# {[%clk 0:00:11]} 1-0


[Site "https://www.chess.com"]

[Event "Titled Tuesday Blitz July 11 Early 2023"]
[White "Haug, Havard"]
[Black "WindWhistler11"]
[WhiteFideId "1547887"]
[WhiteElo "2640"]
[BlackElo "2522"]
[Result "1-0"]
[Round "8"]
[TimeControl "180+2"]
[Date "2023.07.11"]
[WhiteClock "0:01:17"]
[BlackClock "0:00:00"]
[Board "63"]

1. e4 {[%clk 0:03:00]}  e6 {[%clk 0:02:58]} 2. d4 {[%clk 0:02:57]}  d5 {[%clk 0:02:58]} 3. e5 {[%clk 0:02:56]}  c5 {[%clk 0:02:58]} 4. c3 {[%clk 0:02:54]}  Nc6 {[%clk 0:02:58]} 5. Nf3 {[%clk 0:02:54]}  Bd7 {[%clk 0:02:59]} 6. Be2 {[%clk 0:02:54]}  Nge7 {[%clk 0:02:58]} 7. Na3 {[%clk 0:02:53]}  cxd4 {[%clk 0:02:56]} 8. cxd4 {[%clk 0:02:53]}  Nf5 {[%clk 0:02:57]} 9. Nc2 {[%clk 0:02:53]}  Be7 {[%clk 0:02:55]} 10. O-O {[%clk 0:02:53]}  Qb6 {[%clk 0:02:41]} 11. Rb1 {[%clk 0:02:47]}  a5 {[%clk 0:02:29]} 12. g4 {[%clk 0:02:44]}  Nh4 {[%clk 0:02:21]} 13. Nxh4 {[%clk 0:02:43]}  Bxh4 {[%clk 0:02:22]} 14. Be3 {[%clk 0:02:43]}  Be7 {[%clk 0:02:16]} 15. f4 {[%clk 0:02:41]}  g6 {[%clk 0:02:11]} 16. a4 {[%clk 0:02:34]}  f6 {[%clk 0:01:53]} 17. Na3 {[%clk 0:02:32]}  fxe5 {[%clk 0:01:48]} 18. fxe5 {[%clk 0:02:33]}  Nxe5 {[%clk 0:01:44]} 19. Nb5 {[%clk 0:02:30]}  Nf7 {[%clk 0:01:40]} 20. Rc1 {[%clk 0:02:24]}  O-O {[%clk 0:01:39]} 21. Bf4 {[%clk 0:02:20]}  e5 {[%clk 0:01:24]} 22. Be3 {[%clk 0:02:17]}  e4 {[%clk 0:01:16]} 23. Nc7 {[%clk 0:02:16]}  Bc6 {[%clk 0:00:58]} 24. Nxa8 {[%clk 0:02:09]}  Rxa8 {[%clk 0:00:59]} 25. Qe1 {[%clk 0:02:02]}  Qxb2 {[%clk 0:00:53]} 26. Bb5 {[%clk 0:01:52]}  Nd6 {[%clk 0:00:14]} 27. Bxc6 {[%clk 0:01:46]}  bxc6 {[%clk 0:00:14]} 28. Rxc6 {[%clk 0:01:46]}  Nc4 {[%clk 0:00:14]} 29. Rxc4 {[%clk 0:01:26]}  dxc4 {[%clk 0:00:14]} 30. Bf2 {[%clk 0:01:27]}  Qc2 {[%clk 0:00:11]} 31. Qe3 {[%clk 0:01:27]}  Re8 {[%clk 0:00:07]} 32. Qf4 {[%clk 0:01:23]}  Qd3 {[%clk 0:00:04]} 33. Qe5 {[%clk 0:01:22]}  Qf3 {[%clk 0:00:02]} 34. Qe6+ {[%clk 0:01:17]}  Kh8 {[%clk 0:00:02]} 35. Bg3 {[%clk 0:01:18]}  Qe3+ {[%clk 0:00:01]} 36. Kh1 {[%clk 0:01:18]}  Qh6 {[%clk 0:00:00]} 37. Be5+ {[%clk 0:01:17]} 1-0


[Site "https://www.chess.com"]